Department Family,Entity,Date,Expense type,Expense area,Supplier,Transaction number,Amount
BEIS,ACAS,29/09/2022,CONTRACTOR OFF-PAYROLL IN IR35,STRATEGY,ALEXANDER MANN SOLUTIONS LTD,POIN796,1512.14
BEIS,ACAS,29/09/2022,EXTERNAL LEARNING,ODHR,SOUTHVIEW SALES LTD,POIN797,1800
BEIS,ACAS,03/10/2022,OCCUPATIONAL HEALTH SERVICE,FEP,POSTURITE LTD,POIN798,635.76
BEIS,ACAS,04/10/2022,OCCUPATIONAL HEALTH SERVICE,FEP,FLEXIFORM BUSINESS FURNITURE LTD,POIN799,810
BEIS,ACAS,05/10/2022,TRAINERS & GUEST SPEAKERS,ODHR,PAULINE HUGHES LIMITED,POIN801,900
BEIS,ACAS,05/10/2022,OCCUPATIONAL HEALTH SERVICE,FEP,FLEXIFORM BUSINESS FURNITURE LTD,POIN803,327.82
BEIS,ACAS,28/09/2022,PUBLICITY,STRATEGY,YOUGOV PLC,POIN804,8880
BEIS,ACAS,07/10/2022,EXTERNAL LEARNING - CSL,ODHR,KPMG LLP,POIN805,1647.6
BEIS,ACAS,07/10/2022,EXTERNAL LEARNING,ODHR,KPMG LLP,POIN806,2640
BEIS,ACAS,07/10/2022,PROFESSIONAL FEES,FEP,UK SHARED BUSINESS SERVICES LTD,POIN807,1300
BEIS,ACAS,10/10/2022,NAO FEES,FEP,NATIONAL AUDIT OFFICE,POIN808,55000
BEIS,ACAS,10/10/2022,NAO FEES,FEP,NATIONAL AUDIT OFFICE,POIN808,4000
BEIS,ACAS,03/10/2022,PROFESSIONAL FEES,DDAT,SIRIUS OPEN SOURCE LIMITED,POIN809,1792.61
BEIS,ACAS,30/09/2022,PROFESSIONAL FEES,DDAT,VERSION 1 SOLUTIONS LTD,POIN810,6490
BEIS,ACAS,06/10/2022,CONTRACTOR OFF-PAYROLL IN IR35,DDAT,ALEXANDER MANN SOLUTIONS LTD,POIN812,3187.46
BEIS,ACAS,30/09/2022,EVALUATION OF OPS ACTIVITIES,STRATEGY,I F F RESEARCH,POIN813,18000
BEIS,ACAS,30/09/2022,EVALUATION OF OPS ACTIVITIES,STRATEGY,I F F RESEARCH,POIN814,18000
BEIS,ACAS,30/09/2022,PROFESSIONAL FEES,DDAT,VERSION 1 SOLUTIONS LTD,POIN815,5097.22
BEIS,ACAS,08/10/2022,GOVT SOLICITORS FEES,CO,GOVERNMENT LEGAL DEPARTMENT,POIN816,2810.88
BEIS,ACAS,13/09/2022,TRAINERS & GUEST SPEAKERS,ODHR,LUMINATE CONSULTANCY LTD,POIN817,1560
BEIS,ACAS,11/10/2022,STATIONERY & CONSUMABLES,CO,G RYDER & CO LTD,POIN818,2524.61
BEIS,ACAS,13/10/2022,EXTERNAL LEARNING,ODHR,ESSENCIAL LEARNING,POIN819,800
BEIS,ACAS,12/10/2022,PROFESSIONAL FEES,DDAT,BIZZDESIGN UK LTD,POIN820,3300
BEIS,ACAS,05/09/2022,OCCUPATIONAL HEALTH SERVICE,FEP,FLEXIFORM BUSINESS FURNITURE LTD,POIN821,819.72
BEIS,ACAS,13/10/2022,EXTERNAL LEARNING,ODHR,LSR TRAINING AND DEVELOPMENT LTD,POIN822,828
BEIS,ACAS,13/10/2022,EXTERNAL LEARNING - CSL,ODHR,LSR TRAINING AND DEVELOPMENT LTD,POIN823,828
BEIS,ACAS,13/10/2022,EXTERNAL LEARNING - CSL,ODHR,LSR TRAINING AND DEVELOPMENT LTD,POIN823,828
BEIS,ACAS,14/10/2022,PROFESSIONAL FEES,DELIVERY,BIG BLUE DOOR,POIN824,9600
BEIS,ACAS,17/10/2022,EXTERNAL LEARNING,ODHR,TRACY MOUNTAIN CONSULTANCY LIMITED,POIN825,350
BEIS,ACAS,14/10/2022,EXTERNAL LEARNING,ODHR,METADATA LTD,POIN826,1194
BEIS,ACAS,13/10/2022,SOFTWARE & LICENCES,DDAT,PHOENIX SOFTWARE LTD,POIN827,5260.8
BEIS,ACAS,14/10/2022,PROFESSIONAL FEES,DDAT,BIG BLUE DOOR,POIN828,900
BEIS,ACAS,18/10/2022,IA FEES,FEP,GOVERNMENT INTERNAL AUDIT AGENCY,POIN829,14175
BEIS,ACAS,05/10/2022,OTHER FEES TO OGD'S,ODHR,MYCSP LTD,POIN830,797.88
BEIS,ACAS,12/09/2022,OCCUPATIONAL HEALTH SERVICE,FEP,FLEXIFORM BUSINESS FURNITURE LTD,POIN831,896.2
BEIS,ACAS,17/10/2022,EXTERNAL LEARNING,ODHR,CAMBRIDGE EMPLOYMENT LAW,POIN832,300
BEIS,ACAS,24/10/2022,EXTERNAL LEARNING,ODHR,HEMSLEY FRASER GROUP LTD,POIN833,2640
BEIS,ACAS,19/10/2022,PROFESSIONAL FEES,DDAT,ACS SYSTEMS UK LTD,POIN834,930
BEIS,ACAS,21/10/2022,COMPUTER HARDWARE,DDAT,UPGRADE OPTIONS LIMITED,POIN835,1036.8
BEIS,ACAS,21/10/2022,COMPUTER HARDWARE,DDAT,UPGRADE OPTIONS LIMITED,POIN835,115.2
BEIS,ACAS,21/10/2022,COMPUTER HARDWARE,DDAT,UPGRADE OPTIONS LIMITED,POIN835,1152
BEIS,ACAS,13/10/2022,AGENCY STAFF,DELIVERY,ALEXANDER MANN SOLUTIONS LTD,POIN836,8521.8
BEIS,ACAS,30/09/2022,MANAGED SERVICE Off-PAYROLL WK,DELIVERY,TISSKI LTD,POIN837,11856
BEIS,ACAS,13/10/2022,CONTRACTOR OFF-PAYROLL IN IR35,DELIVERY,ALEXANDER MANN SOLUTIONS LTD,POIN838,6135.7
BEIS,ACAS,19/10/2022,EXTERNAL LEARNING - CSL,ODHR,PSYSOFT LTD,POIN840,681.6
BEIS,ACAS,25/10/2022,PROFESSIONAL FEES,DDAT,ATOS IT SERVICES UK LIMITED,POIN841,4930.79
BEIS,ACAS,25/10/2022,SOFTWARE & LICENCES,DDAT,ATOS IT SERVICES UK LIMITED,POIN842,2036.88
BEIS,ACAS,25/10/2022,SOFTWARE & LICENCES,DDAT,ATOS IT SERVICES UK LIMITED,POIN842,11466.25
BEIS,ACAS,25/10/2022,SOFTWARE & LICENCES,DDAT,ATOS IT SERVICES UK LIMITED,POIN842,2406
BEIS,ACAS,25/10/2022,TELEPHONES,DDAT,ATOS IT SERVICES UK LIMITED,POIN842,41.98
BEIS,ACAS,25/10/2022,SOFTWARE & LICENCES,DDAT,ATOS IT SERVICES UK LIMITED,POIN842,179.7
BEIS,ACAS,25/10/2022,TELEPHONES,DDAT,ATOS IT SERVICES UK LIMITED,POIN842,49.46
BEIS,ACAS,26/10/2022,IT & TELECOMS TRAINING,DDAT,QAIQ,POIN843,4143.6
BEIS,ACAS,27/10/2022,EXTERNAL LEARNING,ODHR,SNAP SURVEYS LTD,POIN844,300
BEIS,ACAS,07/10/2022,PROFESSIONAL FEES,FEP,GOVERNMENT PROPERTY AGENCY,POIN845,360
BEIS,ACAS,27/10/2022,EXTERNAL LEARNING,ODHR,SOUTHVIEW SALES LTD,POIN846,3420
BEIS,ACAS,18/10/2022,PROFESSIONAL FEES,FEP,GOVERNMENT PROPERTY AGENCY,POIN847,360
BEIS,ACAS,20/10/2022,PROFESSIONAL FEES,FEP,GOVERNMENT PROPERTY AGENCY,POIN848,360
BEIS,ACAS,13/10/2022,AGENCY STAFF,ODHR,ALEXANDER MANN SOLUTIONS LTD,POIN849,4003.44
BEIS,ACAS,27/10/2022,AGENCY STAFF,ODHR,ALEXANDER MANN SOLUTIONS LTD,POIN850,8006.88
BEIS,ACAS,06/10/2022,AGENCY STAFF,ODHR,ALEXANDER MANN SOLUTIONS LTD,POIN851,4003.44
BEIS,ACAS,28/10/2022,EXTERNAL LEARNING - CSL,ODHR,KPMG LLP,POIN852,2103.6
BEIS,ACAS,28/10/2022,EXTERNAL LEARNING - CSL,ODHR,KPMG LLP,POIN853,1647.6
BEIS,ACAS,30/10/2022,AGENCY STAFF,ODHR,MICHAEL PAGE,POIN854,60.14
BEIS,ACAS,30/10/2022,AGENCY STAFF,ODHR,MICHAEL PAGE,POIN854,7130.07
BEIS,ACAS,30/09/2022,PERSONAL EXPENSE,SOUTH&LONDON,NAME / DESCRIPTION WITHHELD,EXPS1040,523.8
BEIS,ACAS,30/09/2022,PERSONAL EXPENSE,SOUTH&LONDON,NAME / DESCRIPTION WITHHELD,EXPS1040,40
BEIS,ACAS,30/09/2022,PERSONAL EXPENSE,SOUTH&LONDON,NAME / DESCRIPTION WITHHELD,EXPS1040,10
BEIS,ACAS,30/09/2022,PERSONAL EXPENSE,SOUTH&LONDON,NAME / DESCRIPTION WITHHELD,EXPS1040,10
BEIS,ACAS,30/09/2022,PERSONAL EXPENSE,SOUTH&LONDON,NAME / DESCRIPTION WITHHELD,EXPS1040,5.9
BEIS,ACAS,29/09/2022,AGENCY STAFF,NORTH&MID,ALEXANDER MANN SOLUTIONS LTD,PINV1041,644.69
BEIS,ACAS,16/09/2022,SOFTWARE & LICENCES,FEP,AWAKEN LEARNING LTD,PINV1042,5460
BEIS,ACAS,03/10/2022,PERSONAL EXPENSE,SOUTH&LONDON,NAME / DESCRIPTION WITHHELD,EXPS1044,326.7
BEIS,ACAS,03/10/2022,PERSONAL EXPENSE,SOUTH&LONDON,NAME / DESCRIPTION WITHHELD,EXPS1044,105
BEIS,ACAS,03/10/2022,PERSONAL EXPENSE,SOUTH&LONDON,NAME / DESCRIPTION WITHHELD,EXPS1044,15
BEIS,ACAS,03/10/2022,PERSONAL EXPENSE,SOUTH&LONDON,NAME / DESCRIPTION WITHHELD,EXPS1044,50
BEIS,ACAS,03/10/2022,PERSONAL EXPENSE,SOUTH&LONDON,NAME / DESCRIPTION WITHHELD,EXPS1044,10
BEIS,ACAS,03/10/2022,PERSONAL EXPENSE,SOUTH&LONDON,NAME / DESCRIPTION WITHHELD,EXPS1044,11
BEIS,ACAS,03/10/2022,PERSONAL EXPENSE,SOUTH&LONDON,NAME / DESCRIPTION WITHHELD,EXPS1044,2
BEIS,ACAS,03/10/2022,PERSONAL EXPENSE,SOUTH&LONDON,NAME / DESCRIPTION WITHHELD,EXPS1044,2.1
BEIS,ACAS,03/10/2022,PERSONAL EXPENSE,SOUTH&LONDON,NAME / DESCRIPTION WITHHELD,EXPS1044,49.99
BEIS,ACAS,05/10/2022,SOFTWARE & LICENCES,DELIVERY,ZOOM VIDEO COMMUNICATIONS INC,PINV1045,68.95
BEIS,ACAS,05/10/2022,SOFTWARE & LICENCES,DELIVERY,ZOOM VIDEO COMMUNICATIONS INC,PINV1045,137.9
BEIS,ACAS,05/10/2022,SOFTWARE & LICENCES,ODHR,ZOOM VIDEO COMMUNICATIONS INC,PINV1045,13.79
BEIS,ACAS,05/10/2022,SOFTWARE & LICENCES,DELIVERY,ZOOM VIDEO COMMUNICATIONS INC,PINV1045,137.9
BEIS,ACAS,05/10/2022,SOFTWARE & LICENCES,DELIVERY,ZOOM VIDEO COMMUNICATIONS INC,PINV1045,13.79
BEIS,ACAS,05/10/2022,SOFTWARE & LICENCES,SCOTLAND,ZOOM VIDEO COMMUNICATIONS INC,PINV1045,137.9
BEIS,ACAS,05/10/2022,SOFTWARE & LICENCES,NORTH&MID,ZOOM VIDEO COMMUNICATIONS INC,PINV1045,55.16
BEIS,ACAS,05/10/2022,SOFTWARE & LICENCES,NORTH&MID,ZOOM VIDEO COMMUNICATIONS INC,PINV1045,151.69
BEIS,ACAS,05/10/2022,SOFTWARE & LICENCES,NORTH&MID,ZOOM VIDEO COMMUNICATIONS INC,PINV1045,124.11
BEIS,ACAS,05/10/2022,SOFTWARE & LICENCES,NORTH&MID,ZOOM VIDEO COMMUNICATIONS INC,PINV1045,110.31
BEIS,ACAS,05/10/2022,SOFTWARE & LICENCES,WALES&MID,ZOOM VIDEO COMMUNICATIONS INC,PINV1045,151.69
BEIS,ACAS,05/10/2022,SOFTWARE & LICENCES,WALES&MID,ZOOM VIDEO COMMUNICATIONS INC,PINV1045,110.31
BEIS,ACAS,05/10/2022,SOFTWARE & LICENCES,SOUTH&LONDON,ZOOM VIDEO COMMUNICATIONS INC,PINV1045,96.53
BEIS,ACAS,05/10/2022,SOFTWARE & LICENCES,SOUTH&LONDON,ZOOM VIDEO COMMUNICATIONS INC,PINV1045,151.69
BEIS,ACAS,05/10/2022,SOFTWARE & LICENCES,SOUTH&LONDON,ZOOM VIDEO COMMUNICATIONS INC,PINV1045,110.31
BEIS,ACAS,05/10/2022,SOFTWARE & LICENCES,SOUTH&LONDON,ZOOM VIDEO COMMUNICATIONS INC,PINV1045,96.53
BEIS,ACAS,05/10/2022,SOFTWARE & LICENCES,NORTH&MID,ZOOM VIDEO COMMUNICATIONS INC,PINV1045,13.79
BEIS,ACAS,01/10/2022,PUBLICITY,STRATEGY,CISION,PINV1046,2670
BEIS,ACAS,30/09/2022,PERSONAL EXPENSE,SOUTH&LONDON,NAME / DESCRIPTION WITHHELD,EXPS1046,288
BEIS,ACAS,30/09/2022,PERSONAL EXPENSE,SOUTH&LONDON,NAME / DESCRIPTION WITHHELD,EXPS1046,30
BEIS,ACAS,30/09/2022,PERSONAL EXPENSE,SOUTH&LONDON,NAME / DESCRIPTION WITHHELD,EXPS1046,20
BEIS,ACAS,04/10/2022,PERSONAL EXPENSE,NORTH&MID,NAME / DESCRIPTION WITHHELD,EXPS1048,215.1
BEIS,ACAS,04/10/2022,PERSONAL EXPENSE,NORTH&MID,NAME / DESCRIPTION WITHHELD,EXPS1048,50.7
BEIS,ACAS,04/10/2022,PERSONAL EXPENSE,NORTH&MID,NAME / DESCRIPTION WITHHELD,EXPS1048,30
BEIS,ACAS,04/10/2022,PERSONAL EXPENSE,NORTH&MID,NAME / DESCRIPTION WITHHELD,EXPS1048,5
BEIS,ACAS,04/10/2022,PERSONAL EXPENSE,NORTH&MID,NAME / DESCRIPTION WITHHELD,EXPS1048,10
BEIS,ACAS,01/10/2022,VENUE HIRE (REC VAT),FEP,CLOCKWISE SAVOY LIMITED,PINV1048,1152
BEIS,ACAS,01/10/2022,VENUE HIRE (REC VAT),FEP,CLOCKWISE SAVOY LIMITED,PINV1049,5448
BEIS,ACAS,06/10/2022,AGENCY STAFF,NORTH&MID,ALEXANDER MANN SOLUTIONS LTD,PINV1050,644.69
BEIS,ACAS,06/10/2022,REFUNDS,SOUTH&LONDON,STAFFORDSHIRE POLICE,PINV1051,255
BEIS,ACAS,07/10/2022,VENUE HIRE (REC VAT),NORTH&MID,CALDER CONFERENCES LTD,PINV1053,109.44
BEIS,ACAS,07/10/2022,VENUE HIRE (REC VAT),NORTH&MID,CALDER CONFERENCES LTD,PINV1053,104.16
BEIS,ACAS,07/10/2022,VENUE HIRE (REC VAT),NORTH&MID,CALDER CONFERENCES LTD,PINV1053,300
BEIS,ACAS,07/10/2022,CATERING,NORTH&MID,CALDER CONFERENCES LTD,PINV1053,84
BEIS,ACAS,07/10/2022,VENUE HIRE (REC VAT),WALES&MID,CALDER CONFERENCES LTD,PINV1053,250
BEIS,ACAS,07/10/2022,CATERING,WALES&MID,CALDER CONFERENCES LTD,PINV1053,55.3
BEIS,ACAS,07/10/2022,VENUE HIRE (REC VAT),NORTH&MID,CALDER CONFERENCES LTD,PINV1053,360
BEIS,ACAS,07/10/2022,CATERING,NORTH&MID,CALDER CONFERENCES LTD,PINV1053,60
BEIS,ACAS,07/10/2022,VENUE HIRE (REC VAT),NORTH&MID,CALDER CONFERENCES LTD,PINV1053,438
BEIS,ACAS,07/10/2022,CATERING,NORTH&MID,CALDER CONFERENCES LTD,PINV1053,130.8
BEIS,ACAS,30/09/2022,PUBLIC TRANSPORT & PARKING,SPPC,CORPORATE TRAVEL MANAGEMENTLIMITED,PINV1054,118.1
BEIS,ACAS,30/09/2022,PUBLIC TRANSPORT & PARKING,FEP,CORPORATE TRAVEL MANAGEMENTLIMITED,PINV1054,36.3
BEIS,ACAS,30/09/2022,PUBLIC TRANSPORT & PARKING,DDAT,CORPORATE TRAVEL MANAGEMENTLIMITED,PINV1054,98.1
BEIS,ACAS,30/09/2022,PUBLIC TRANSPORT & PARKING,ODHR,CORPORATE TRAVEL MANAGEMENTLIMITED,PINV1054,52.9
BEIS,ACAS,30/09/2022,PUBLIC TRANSPORT & PARKING,DDAT,CORPORATE TRAVEL MANAGEMENTLIMITED,PINV1054,49
BEIS,ACAS,30/09/2022,PUBLIC TRANSPORT & PARKING,ODHR,CORPORATE TRAVEL MANAGEMENTLIMITED,PINV1054,270.8
BEIS,ACAS,30/09/2022,PUBLIC TRANSPORT & PARKING,ODHR,CORPORATE TRAVEL MANAGEMENTLIMITED,PINV1054,71.6
BEIS,ACAS,30/09/2022,PUBLIC TRANSPORT & PARKING,SPPC,CORPORATE TRAVEL MANAGEMENTLIMITED,PINV1054,197
BEIS,ACAS,30/09/2022,PUBLIC TRANSPORT & PARKING,SPPC,CORPORATE TRAVEL MANAGEMENTLIMITED,PINV1054,190
BEIS,ACAS,30/09/2022,PUBLIC TRANSPORT & PARKING,SPPC,CORPORATE TRAVEL MANAGEMENTLIMITED,PINV1054,197
BEIS,ACAS,30/09/2022,PUBLIC TRANSPORT & PARKING,STRATEGY,CORPORATE TRAVEL MANAGEMENTLIMITED,PINV1054,53.5
BEIS,ACAS,30/09/2022,PUBLIC TRANSPORT & PARKING,STRATEGY,CORPORATE TRAVEL MANAGEMENTLIMITED,PINV1054,61.3
BEIS,ACAS,30/09/2022,PUBLIC TRANSPORT & PARKING,FEP,CORPORATE TRAVEL MANAGEMENTLIMITED,PINV1054,74
BEIS,ACAS,30/09/2022,PUBLIC TRANSPORT & PARKING,FEP,CORPORATE TRAVEL MANAGEMENTLIMITED,PINV1054,56
BEIS,ACAS,30/09/2022,PUBLIC TRANSPORT & PARKING,NORTH&MID,CORPORATE TRAVEL MANAGEMENTLIMITED,PINV1054,20
BEIS,ACAS,30/09/2022,PUBLIC TRANSPORT & PARKING,SPPC,CORPORATE TRAVEL MANAGEMENTLIMITED,PINV1054,50.8
BEIS,ACAS,30/09/2022,HOTEL EXPENSES,DDAT,CORPORATE TRAVEL MANAGEMENTLIMITED,PINV1054,45.39
BEIS,ACAS,30/09/2022,HOTEL EXPENSES,DDAT,CORPORATE TRAVEL MANAGEMENTLIMITED,PINV1054,45.39
BEIS,ACAS,30/09/2022,PUBLIC TRANSPORT & PARKING,SPPC,CORPORATE TRAVEL MANAGEMENTLIMITED,PINV1054,158.3
BEIS,ACAS,30/09/2022,PUBLIC TRANSPORT & PARKING,SPPC,CORPORATE TRAVEL MANAGEMENTLIMITED,PINV1054,71
BEIS,ACAS,30/09/2022,HOTEL EXPENSES,SPPC,CORPORATE TRAVEL MANAGEMENTLIMITED,PINV1054,54.35
BEIS,ACAS,30/09/2022,HOTEL EXPENSES,STRATEGY,CORPORATE TRAVEL MANAGEMENTLIMITED,PINV1054,54.35
BEIS,ACAS,30/09/2022,PUBLIC TRANSPORT & PARKING,SOUTH&LONDON,CORPORATE TRAVEL MANAGEMENTLIMITED,PINV1054,121.5
BEIS,ACAS,30/09/2022,PUBLIC TRANSPORT & PARKING,STRATEGY,CORPORATE TRAVEL MANAGEMENTLIMITED,PINV1054,229.4
BEIS,ACAS,30/09/2022,PUBLIC TRANSPORT & PARKING,CO,CORPORATE TRAVEL MANAGEMENTLIMITED,PINV1054,19.7
BEIS,ACAS,30/09/2022,PUBLIC TRANSPORT & PARKING,ODHR,CORPORATE TRAVEL MANAGEMENTLIMITED,PINV1054,126.4
BEIS,ACAS,05/10/2022,PHOTOCOPIERS,DDAT,Canon (UK) Ltd,PINV1057,3938.4
BEIS,ACAS,05/10/2022,PHOTOCOPIERS,DDAT,Canon (UK) Ltd,PINV1057,437.6
BEIS,ACAS,04/10/2022,PERSONAL EXPENSE,SCOTLAND,NAME / DESCRIPTION WITHHELD,EXPS1057,272.7
BEIS,ACAS,04/10/2022,PERSONAL EXPENSE,SCOTLAND,NAME / DESCRIPTION WITHHELD,EXPS1057,35
BEIS,ACAS,04/10/2022,PERSONAL EXPENSE,SCOTLAND,NAME / DESCRIPTION WITHHELD,EXPS1057,5
BEIS,ACAS,04/10/2022,PERSONAL EXPENSE,SCOTLAND,NAME / DESCRIPTION WITHHELD,EXPS1057,10
BEIS,ACAS,04/10/2022,PERSONAL EXPENSE,SCOTLAND,NAME / DESCRIPTION WITHHELD,EXPS1057,13
BEIS,ACAS,30/09/2022,PUBLIC TRANSPORT & PARKING,DDAT,CORPORATE TRAVEL MANAGEMENTLIMITED,PINV1058,135.45
BEIS,ACAS,30/09/2022,PUBLIC TRANSPORT & PARKING,DELIVERY,CORPORATE TRAVEL MANAGEMENTLIMITED,PINV1058,44.25
BEIS,ACAS,30/09/2022,PUBLIC TRANSPORT & PARKING,STRATEGY,CORPORATE TRAVEL MANAGEMENTLIMITED,PINV1058,-59
BEIS,ACAS,30/09/2022,PUBLIC TRANSPORT & PARKING,SOUTH&LONDON,CORPORATE TRAVEL MANAGEMENTLIMITED,PINV1058,71.65
BEIS,ACAS,30/09/2022,PUBLIC TRANSPORT & PARKING,DELIVERY,CORPORATE TRAVEL MANAGEMENTLIMITED,PINV1058,69.45
BEIS,ACAS,30/09/2022,PUBLIC TRANSPORT & PARKING,DELIVERY,CORPORATE TRAVEL MANAGEMENTLIMITED,PINV1058,57.75
BEIS,ACAS,30/09/2022,PUBLIC TRANSPORT & PARKING,WALES&MID,CORPORATE TRAVEL MANAGEMENTLIMITED,PINV1058,-96.3
BEIS,ACAS,30/09/2022,PUBLIC TRANSPORT & PARKING,FEP,CORPORATE TRAVEL MANAGEMENTLIMITED,PINV1058,111.65
BEIS,ACAS,30/09/2022,PUBLIC TRANSPORT & PARKING,NORTH&MID,CORPORATE TRAVEL MANAGEMENTLIMITED,PINV1058,27.65
BEIS,ACAS,30/09/2022,PUBLIC TRANSPORT & PARKING,SPPC,CORPORATE TRAVEL MANAGEMENTLIMITED,PINV1058,135.49
BEIS,ACAS,30/09/2022,PUBLIC TRANSPORT & PARKING,STRATEGY,CORPORATE TRAVEL MANAGEMENTLIMITED,PINV1058,167.15
BEIS,ACAS,30/09/2022,PUBLIC TRANSPORT & PARKING,DDAT,CORPORATE TRAVEL MANAGEMENTLIMITED,PINV1058,76.55
BEIS,ACAS,30/09/2022,PUBLIC TRANSPORT & PARKING,SPPC,CORPORATE TRAVEL MANAGEMENTLIMITED,PINV1058,265.25
BEIS,ACAS,30/09/2022,PUBLIC TRANSPORT & PARKING,DDAT,CORPORATE TRAVEL MANAGEMENTLIMITED,PINV1058,291.25
BEIS,ACAS,30/09/2022,PUBLIC TRANSPORT & PARKING,SOUTH&LONDON,CORPORATE TRAVEL MANAGEMENTLIMITED,PINV1058,41.95
BEIS,ACAS,30/09/2022,PUBLIC TRANSPORT & PARKING,SOUTH&LONDON,CORPORATE TRAVEL MANAGEMENTLIMITED,PINV1058,41.95
BEIS,ACAS,30/09/2022,PUBLIC TRANSPORT & PARKING,SOUTH&LONDON,CORPORATE TRAVEL MANAGEMENTLIMITED,PINV1058,39.45
BEIS,ACAS,30/09/2022,HOTEL EXPENSES,ODHR,CORPORATE TRAVEL MANAGEMENTLIMITED,PINV1058,1.12
BEIS,ACAS,30/09/2022,PUBLIC TRANSPORT & PARKING,ODHR,CORPORATE TRAVEL MANAGEMENTLIMITED,PINV1058,67.25
BEIS,ACAS,30/09/2022,PUBLIC TRANSPORT & PARKING,CO,CORPORATE TRAVEL MANAGEMENTLIMITED,PINV1058,41.05
BEIS,ACAS,30/09/2022,PUBLIC TRANSPORT & PARKING,CO,CORPORATE TRAVEL MANAGEMENTLIMITED,PINV1058,37.95
BEIS,ACAS,30/09/2022,PUBLIC TRANSPORT & PARKING,CO,CORPORATE TRAVEL MANAGEMENTLIMITED,PINV1058,20.35
BEIS,ACAS,30/09/2022,PUBLIC TRANSPORT & PARKING,ODHR,CORPORATE TRAVEL MANAGEMENTLIMITED,PINV1058,111.75
BEIS,ACAS,30/09/2022,PUBLIC TRANSPORT & PARKING,DELIVERY,CORPORATE TRAVEL MANAGEMENTLIMITED,PINV1058,67.35
BEIS,ACAS,30/09/2022,PUBLIC TRANSPORT & PARKING,DELIVERY,CORPORATE TRAVEL MANAGEMENTLIMITED,PINV1058,47.75
BEIS,ACAS,30/09/2022,PUBLIC TRANSPORT & PARKING,FEP,CORPORATE TRAVEL MANAGEMENTLIMITED,PINV1058,181.35
BEIS,ACAS,30/09/2022,PUBLIC TRANSPORT & PARKING,SPPC,CORPORATE TRAVEL MANAGEMENTLIMITED,PINV1058,223.95
BEIS,ACAS,30/09/2022,HOTEL EXPENSES,DELIVERY,CORPORATE TRAVEL MANAGEMENTLIMITED,PINV1058,51.32
BEIS,ACAS,30/09/2022,PUBLIC TRANSPORT & PARKING,NORTH&MID,CORPORATE TRAVEL MANAGEMENTLIMITED,PINV1058,71.55
BEIS,ACAS,30/09/2022,HOTEL EXPENSES,SOUTH&LONDON,CORPORATE TRAVEL MANAGEMENTLIMITED,PINV1058,80.46
BEIS,ACAS,30/09/2022,PUBLIC TRANSPORT & PARKING,NORTH&MID,CORPORATE TRAVEL MANAGEMENTLIMITED,PINV1058,39.05
BEIS,ACAS,30/09/2022,PUBLIC TRANSPORT & PARKING,SPPC,CORPORATE TRAVEL MANAGEMENTLIMITED,PINV1058,42.85
BEIS,ACAS,30/09/2022,PUBLIC TRANSPORT & PARKING,ODHR,CORPORATE TRAVEL MANAGEMENTLIMITED,PINV1058,183.35
BEIS,ACAS,30/09/2022,PUBLIC TRANSPORT & PARKING,ODHR,CORPORATE TRAVEL MANAGEMENTLIMITED,PINV1058,65.65
BEIS,ACAS,30/09/2022,PUBLIC TRANSPORT & PARKING,STRATEGY,CORPORATE TRAVEL MANAGEMENTLIMITED,PINV1058,297.25
BEIS,ACAS,30/09/2022,PUBLIC TRANSPORT & PARKING,ODHR,CORPORATE TRAVEL MANAGEMENTLIMITED,PINV1058,56.75
BEIS,ACAS,30/09/2022,PUBLIC TRANSPORT & PARKING,SOUTH&LONDON,CORPORATE TRAVEL MANAGEMENTLIMITED,PINV1058,161.75
BEIS,ACAS,30/09/2022,PUBLIC TRANSPORT & PARKING,STRATEGY,CORPORATE TRAVEL MANAGEMENTLIMITED,PINV1058,58.55
BEIS,ACAS,30/09/2022,PUBLIC TRANSPORT & PARKING,ODHR,CORPORATE TRAVEL MANAGEMENTLIMITED,PINV1058,30.75
BEIS,ACAS,30/09/2022,PUBLIC TRANSPORT & PARKING,CO,CORPORATE TRAVEL MANAGEMENTLIMITED,PINV1058,40.85
BEIS,ACAS,30/09/2022,HOTEL EXPENSES,SCOTLAND,CORPORATE TRAVEL MANAGEMENTLIMITED,PINV1058,75.13
BEIS,ACAS,30/09/2022,HOTEL EXPENSES,ODHR,CORPORATE TRAVEL MANAGEMENTLIMITED,PINV1058,156.32
BEIS,ACAS,30/09/2022,PUBLIC TRANSPORT & PARKING,STRATEGY,CORPORATE TRAVEL MANAGEMENTLIMITED,PINV1058,157.05
BEIS,ACAS,30/09/2022,HOTEL EXPENSES,STRATEGY,CORPORATE TRAVEL MANAGEMENTLIMITED,PINV1058,431.12
BEIS,ACAS,30/09/2022,HOTEL EXPENSES,SOUTH&LONDON,CORPORATE TRAVEL MANAGEMENTLIMITED,PINV1058,63.13
BEIS,ACAS,30/09/2022,HOTEL EXPENSES,WALES&MID,CORPORATE TRAVEL MANAGEMENTLIMITED,PINV1058,80.13
BEIS,ACAS,30/09/2022,HOTEL EXPENSES,ODHR,CORPORATE TRAVEL MANAGEMENTLIMITED,PINV1058,131.12
BEIS,ACAS,30/09/2022,HOTEL EXPENSES,ODHR,CORPORATE TRAVEL MANAGEMENTLIMITED,PINV1058,131.12
BEIS,ACAS,30/09/2022,HOTEL EXPENSES,SPPC,CORPORATE TRAVEL MANAGEMENTLIMITED,PINV1058,131.12
BEIS,ACAS,30/09/2022,HOTEL EXPENSES,WALES&MID,CORPORATE TRAVEL MANAGEMENTLIMITED,PINV1058,76.12
BEIS,ACAS,30/09/2022,HOTEL EXPENSES,STRATEGY,CORPORATE TRAVEL MANAGEMENTLIMITED,PINV1058,220.42
BEIS,ACAS,30/09/2022,PUBLIC TRANSPORT & PARKING,SPPC,CORPORATE TRAVEL MANAGEMENTLIMITED,PINV1058,190.25
BEIS,ACAS,30/09/2022,PUBLIC TRANSPORT & PARKING,DELIVERY,CORPORATE TRAVEL MANAGEMENTLIMITED,PINV1058,57.35
BEIS,ACAS,30/09/2022,PUBLIC TRANSPORT & PARKING,SOUTH&LONDON,CORPORATE TRAVEL MANAGEMENTLIMITED,PINV1058,41.95
BEIS,ACAS,30/09/2022,PUBLIC TRANSPORT & PARKING,SOUTH&LONDON,CORPORATE TRAVEL MANAGEMENTLIMITED,PINV1058,41.95
BEIS,ACAS,30/09/2022,PUBLIC TRANSPORT & PARKING,SOUTH&LONDON,CORPORATE TRAVEL MANAGEMENTLIMITED,PINV1058,41.95
BEIS,ACAS,30/09/2022,PUBLIC TRANSPORT & PARKING,SOUTH&LONDON,CORPORATE TRAVEL MANAGEMENTLIMITED,PINV1058,41.95
BEIS,ACAS,30/09/2022,PUBLIC TRANSPORT & PARKING,SOUTH&LONDON,CORPORATE TRAVEL MANAGEMENTLIMITED,PINV1058,41.95
BEIS,ACAS,30/09/2022,PUBLIC TRANSPORT & PARKING,SOUTH&LONDON,CORPORATE TRAVEL MANAGEMENTLIMITED,PINV1058,41.95
BEIS,ACAS,30/09/2022,PUBLIC TRANSPORT & PARKING,SOUTH&LONDON,CORPORATE TRAVEL MANAGEMENTLIMITED,PINV1058,41.95
BEIS,ACAS,30/09/2022,PUBLIC TRANSPORT & PARKING,DDAT,CORPORATE TRAVEL MANAGEMENTLIMITED,PINV1058,31.65
BEIS,ACAS,30/09/2022,PUBLIC TRANSPORT & PARKING,DDAT,CORPORATE TRAVEL MANAGEMENTLIMITED,PINV1058,27.75
BEIS,ACAS,30/09/2022,PUBLIC TRANSPORT & PARKING,DDAT,CORPORATE TRAVEL MANAGEMENTLIMITED,PINV1058,5.25
BEIS,ACAS,30/09/2022,HOTEL EXPENSES,SOUTH&LONDON,CORPORATE TRAVEL MANAGEMENTLIMITED,PINV1058,198.62
BEIS,ACAS,30/09/2022,HOTEL EXPENSES,DELIVERY,CORPORATE TRAVEL MANAGEMENTLIMITED,PINV1058,92.12
BEIS,ACAS,30/09/2022,PUBLIC TRANSPORT & PARKING,SPPC,CORPORATE TRAVEL MANAGEMENTLIMITED,PINV1058,-254
BEIS,ACAS,30/09/2022,PUBLIC TRANSPORT & PARKING,CO,CORPORATE TRAVEL MANAGEMENTLIMITED,PINV1058,137.45
BEIS,ACAS,30/09/2022,PUBLIC TRANSPORT & PARKING,ODHR,CORPORATE TRAVEL MANAGEMENTLIMITED,PINV1058,128.25
BEIS,ACAS,30/09/2022,PUBLIC TRANSPORT & PARKING,ODHR,CORPORATE TRAVEL MANAGEMENTLIMITED,PINV1058,50.25
BEIS,ACAS,30/09/2022,PUBLIC TRANSPORT & PARKING,SPPC,CORPORATE TRAVEL MANAGEMENTLIMITED,PINV1058,66.85
BEIS,ACAS,30/09/2022,PUBLIC TRANSPORT & PARKING,DDAT,CORPORATE TRAVEL MANAGEMENTLIMITED,PINV1058,166.75
BEIS,ACAS,30/09/2022,CO&CAC Non Staff T&S,CAC,CORPORATE TRAVEL MANAGEMENTLIMITED,PINV1058,87.2
BEIS,ACAS,30/09/2022,PUBLIC TRANSPORT & PARKING,SPPC,CORPORATE TRAVEL MANAGEMENTLIMITED,PINV1058,-4.4
BEIS,ACAS,30/09/2022,PUBLIC TRANSPORT & PARKING,DDAT,CORPORATE TRAVEL MANAGEMENTLIMITED,PINV1058,27.65
BEIS,ACAS,30/09/2022,PUBLIC TRANSPORT & PARKING,FEP,CORPORATE TRAVEL MANAGEMENTLIMITED,PINV1058,80.75
BEIS,ACAS,30/09/2022,HOTEL EXPENSES,SOUTH&LONDON,CORPORATE TRAVEL MANAGEMENTLIMITED,PINV1058,79.33
BEIS,ACAS,30/09/2022,PUBLIC TRANSPORT & PARKING,NORTH&MID,CORPORATE TRAVEL MANAGEMENTLIMITED,PINV1058,11.55
BEIS,ACAS,30/09/2022,HOTEL EXPENSES,WALES&MID,CORPORATE TRAVEL MANAGEMENTLIMITED,PINV1058,1.12
BEIS,ACAS,30/09/2022,HOTEL EXPENSES,WALES&MID,CORPORATE TRAVEL MANAGEMENTLIMITED,PINV1058,1.12
BEIS,ACAS,30/09/2022,PUBLIC TRANSPORT & PARKING,NORTH&MID,CORPORATE TRAVEL MANAGEMENTLIMITED,PINV1058,86.75
BEIS,ACAS,30/09/2022,PUBLIC TRANSPORT & PARKING,WALES&MID,CORPORATE TRAVEL MANAGEMENTLIMITED,PINV1058,85.75
BEIS,ACAS,30/09/2022,PUBLIC TRANSPORT & PARKING,ODHR,CORPORATE TRAVEL MANAGEMENTLIMITED,PINV1058,110.75
BEIS,ACAS,30/09/2022,HOTEL EXPENSES,DDAT,CORPORATE TRAVEL MANAGEMENTLIMITED,PINV1058,1.12
BEIS,ACAS,30/09/2022,PUBLIC TRANSPORT & PARKING,DELIVERY,CORPORATE TRAVEL MANAGEMENTLIMITED,PINV1058,163.05
BEIS,ACAS,30/09/2022,PUBLIC TRANSPORT & PARKING,STRATEGY,CORPORATE TRAVEL MANAGEMENTLIMITED,PINV1058,67.75
BEIS,ACAS,30/09/2022,PUBLIC TRANSPORT & PARKING,DELIVERY,CORPORATE TRAVEL MANAGEMENTLIMITED,PINV1058,104.55
BEIS,ACAS,30/09/2022,PUBLIC TRANSPORT & PARKING,DELIVERY,CORPORATE TRAVEL MANAGEMENTLIMITED,PINV1058,5.15
BEIS,ACAS,30/09/2022,PUBLIC TRANSPORT & PARKING,DELIVERY,CORPORATE TRAVEL MANAGEMENTLIMITED,PINV1058,105.75
BEIS,ACAS,30/09/2022,PUBLIC TRANSPORT & PARKING,STRATEGY,CORPORATE TRAVEL MANAGEMENTLIMITED,PINV1058,344.45
BEIS,ACAS,30/09/2022,HOTEL EXPENSES,DDAT,CORPORATE TRAVEL MANAGEMENTLIMITED,PINV1058,101.48
BEIS,ACAS,30/09/2022,HOTEL EXPENSES,WALES&MID,CORPORATE TRAVEL MANAGEMENTLIMITED,PINV1058,81.12
BEIS,ACAS,30/09/2022,HOTEL EXPENSES,NORTH&MID,CORPORATE TRAVEL MANAGEMENTLIMITED,PINV1058,81.12
BEIS,ACAS,30/09/2022,HOTEL EXPENSES,DDAT,CORPORATE TRAVEL MANAGEMENTLIMITED,PINV1058,111.48
BEIS,ACAS,30/09/2022,HOTEL EXPENSES,SOUTH&LONDON,CORPORATE TRAVEL MANAGEMENTLIMITED,PINV1058,0.56
BEIS,ACAS,30/09/2022,HOTEL EXPENSES,SOUTH&LONDON,CORPORATE TRAVEL MANAGEMENTLIMITED,PINV1058,87.12
BEIS,ACAS,30/09/2022,HOTEL EXPENSES,SOUTH&LONDON,CORPORATE TRAVEL MANAGEMENTLIMITED,PINV1058,81.12
BEIS,ACAS,30/09/2022,HOTEL EXPENSES,WALES&MID,CORPORATE TRAVEL MANAGEMENTLIMITED,PINV1058,81.12
BEIS,ACAS,30/09/2022,HOTEL EXPENSES,NORTH&MID,CORPORATE TRAVEL MANAGEMENTLIMITED,PINV1058,155.12
BEIS,ACAS,30/09/2022,HOTEL EXPENSES,WALES&MID,CORPORATE TRAVEL MANAGEMENTLIMITED,PINV1058,110.56
BEIS,ACAS,30/09/2022,HOTEL EXPENSES,WALES&MID,CORPORATE TRAVEL MANAGEMENTLIMITED,PINV1058,110.56
BEIS,ACAS,30/09/2022,HOTEL EXPENSES,SOUTH&LONDON,CORPORATE TRAVEL MANAGEMENTLIMITED,PINV1058,86.56
BEIS,ACAS,30/09/2022,HOTEL EXPENSES,NORTH&MID,CORPORATE TRAVEL MANAGEMENTLIMITED,PINV1058,81.12
BEIS,ACAS,30/09/2022,PUBLIC TRANSPORT & PARKING,ODHR,CORPORATE TRAVEL MANAGEMENTLIMITED,PINV1058,27.75
BEIS,ACAS,30/09/2022,HOTEL EXPENSES,ODHR,CORPORATE TRAVEL MANAGEMENTLIMITED,PINV1058,1.12
BEIS,ACAS,30/09/2022,PUBLIC TRANSPORT & PARKING,DDAT,CORPORATE TRAVEL MANAGEMENTLIMITED,PINV1058,75.45
BEIS,ACAS,30/09/2022,PUBLIC TRANSPORT & PARKING,FEP,CORPORATE TRAVEL MANAGEMENTLIMITED,PINV1058,64.25
BEIS,ACAS,30/09/2022,PUBLIC TRANSPORT & PARKING,DDAT,CORPORATE TRAVEL MANAGEMENTLIMITED,PINV1058,41.85
BEIS,ACAS,30/09/2022,HOTEL EXPENSES,WALES&MID,CORPORATE TRAVEL MANAGEMENTLIMITED,PINV1058,72.12
BEIS,ACAS,30/09/2022,HOTEL EXPENSES,WALES&MID,CORPORATE TRAVEL MANAGEMENTLIMITED,PINV1058,83.46
BEIS,ACAS,30/09/2022,HOTEL EXPENSES,WALES&MID,CORPORATE TRAVEL MANAGEMENTLIMITED,PINV1058,72.12
BEIS,ACAS,30/09/2022,HOTEL EXPENSES,WALES&MID,CORPORATE TRAVEL MANAGEMENTLIMITED,PINV1058,67.63
BEIS,ACAS,30/09/2022,PUBLIC TRANSPORT & PARKING,SOUTH&LONDON,CORPORATE TRAVEL MANAGEMENTLIMITED,PINV1058,41.05
BEIS,ACAS,30/09/2022,PUBLIC TRANSPORT & PARKING,ODHR,CORPORATE TRAVEL MANAGEMENTLIMITED,PINV1058,60.45
BEIS,ACAS,30/09/2022,PUBLIC TRANSPORT & PARKING,ODHR,CORPORATE TRAVEL MANAGEMENTLIMITED,PINV1058,234.05
BEIS,ACAS,30/09/2022,PUBLIC TRANSPORT & PARKING,STRATEGY,CORPORATE TRAVEL MANAGEMENTLIMITED,PINV1058,267.25
BEIS,ACAS,30/09/2022,PUBLIC TRANSPORT & PARKING,ODHR,CORPORATE TRAVEL MANAGEMENTLIMITED,PINV1058,127.55
BEIS,ACAS,30/09/2022,HOTEL EXPENSES,SOUTH&LONDON,CORPORATE TRAVEL MANAGEMENTLIMITED,PINV1058,63.46
BEIS,ACAS,30/09/2022,HOTEL EXPENSES,SPPC,CORPORATE TRAVEL MANAGEMENTLIMITED,PINV1058,75.12
BEIS,ACAS,30/09/2022,HOTEL EXPENSES,NORTH&MID,CORPORATE TRAVEL MANAGEMENTLIMITED,PINV1058,250.96
BEIS,ACAS,30/09/2022,PUBLIC TRANSPORT & PARKING,DDAT,CORPORATE TRAVEL MANAGEMENTLIMITED,PINV1058,98.35
BEIS,ACAS,30/09/2022,PUBLIC TRANSPORT & PARKING,NORTH&MID,CORPORATE TRAVEL MANAGEMENTLIMITED,PINV1058,42.15
BEIS,ACAS,30/09/2022,PUBLIC TRANSPORT & PARKING,SPPC,CORPORATE TRAVEL MANAGEMENTLIMITED,PINV1058,297.25
BEIS,ACAS,30/09/2022,PUBLIC TRANSPORT & PARKING,NORTH&MID,CORPORATE TRAVEL MANAGEMENTLIMITED,PINV1058,25.55
BEIS,ACAS,30/09/2022,HOTEL EXPENSES,WALES&MID,CORPORATE TRAVEL MANAGEMENTLIMITED,PINV1058,91.79
BEIS,ACAS,30/09/2022,HOTEL EXPENSES,ODHR,CORPORATE TRAVEL MANAGEMENTLIMITED,PINV1058,187.62
BEIS,ACAS,30/09/2022,HOTEL EXPENSES,ODHR,CORPORATE TRAVEL MANAGEMENTLIMITED,PINV1058,401.07
BEIS,ACAS,30/09/2022,HOTEL EXPENSES,SOUTH&LONDON,CORPORATE TRAVEL MANAGEMENTLIMITED,PINV1058,86.46
BEIS,ACAS,30/09/2022,HOTEL EXPENSES,SCOTLAND,CORPORATE TRAVEL MANAGEMENTLIMITED,PINV1058,100.13
BEIS,ACAS,30/09/2022,HOTEL EXPENSES,WALES&MID,CORPORATE TRAVEL MANAGEMENTLIMITED,PINV1058,152.17
BEIS,ACAS,30/09/2022,HOTEL EXPENSES,ODHR,CORPORATE TRAVEL MANAGEMENTLIMITED,PINV1058,141.12
BEIS,ACAS,30/09/2022,HOTEL EXPENSES,WALES&MID,CORPORATE TRAVEL MANAGEMENTLIMITED,PINV1058,152.17
BEIS,ACAS,30/09/2022,PUBLIC TRANSPORT & PARKING,SOUTH&LONDON,CORPORATE TRAVEL MANAGEMENTLIMITED,PINV1058,-31.7
BEIS,ACAS,30/09/2022,PUBLIC TRANSPORT & PARKING,SOUTH&LONDON,CORPORATE TRAVEL MANAGEMENTLIMITED,PINV1058,-31.7
BEIS,ACAS,30/09/2022,PUBLIC TRANSPORT & PARKING,ODHR,CORPORATE TRAVEL MANAGEMENTLIMITED,PINV1058,189.05
BEIS,ACAS,30/09/2022,HOTEL EXPENSES,NORTH&MID,CORPORATE TRAVEL MANAGEMENTLIMITED,PINV1058,187.63
BEIS,ACAS,30/09/2022,PUBLIC TRANSPORT & PARKING,ODHR,CORPORATE TRAVEL MANAGEMENTLIMITED,PINV1058,12.85
BEIS,ACAS,30/09/2022,HOTEL EXPENSES,DDAT,CORPORATE TRAVEL MANAGEMENTLIMITED,PINV1058,77.12
BEIS,ACAS,30/09/2022,CO&CAC Non Staff T&S,CAC,CORPORATE TRAVEL MANAGEMENTLIMITED,PINV1058,-76.95
BEIS,ACAS,30/09/2022,PUBLIC TRANSPORT & PARKING,DELIVERY,CORPORATE TRAVEL MANAGEMENTLIMITED,PINV1058,-110.7
BEIS,ACAS,30/09/2022,PUBLIC TRANSPORT & PARKING,DELIVERY,CORPORATE TRAVEL MANAGEMENTLIMITED,PINV1058,-110.7
BEIS,ACAS,30/09/2022,PUBLIC TRANSPORT & PARKING,DDAT,CORPORATE TRAVEL MANAGEMENTLIMITED,PINV1058,25.75
BEIS,ACAS,30/09/2022,PUBLIC TRANSPORT & PARKING,DDAT,CORPORATE TRAVEL MANAGEMENTLIMITED,PINV1058,14.95
BEIS,ACAS,30/09/2022,PUBLIC TRANSPORT & PARKING,DELIVERY,CORPORATE TRAVEL MANAGEMENTLIMITED,PINV1058,-140
BEIS,ACAS,30/09/2022,PUBLIC TRANSPORT & PARKING,NORTH&MID,CORPORATE TRAVEL MANAGEMENTLIMITED,PINV1058,15.65
BEIS,ACAS,30/09/2022,PUBLIC TRANSPORT & PARKING,DELIVERY,CORPORATE TRAVEL MANAGEMENTLIMITED,PINV1058,284.45
BEIS,ACAS,30/09/2022,PUBLIC TRANSPORT & PARKING,DDAT,CORPORATE TRAVEL MANAGEMENTLIMITED,PINV1058,41.15
BEIS,ACAS,30/09/2022,PUBLIC TRANSPORT & PARKING,ODHR,CORPORATE TRAVEL MANAGEMENTLIMITED,PINV1058,59.95
BEIS,ACAS,30/09/2022,PUBLIC TRANSPORT & PARKING,SPPC,CORPORATE TRAVEL MANAGEMENTLIMITED,PINV1058,197.25
BEIS,ACAS,30/09/2022,PUBLIC TRANSPORT & PARKING,SPPC,CORPORATE TRAVEL MANAGEMENTLIMITED,PINV1058,197.25
BEIS,ACAS,30/09/2022,HOTEL EXPENSES,WALES&MID,CORPORATE TRAVEL MANAGEMENTLIMITED,PINV1058,1.12
BEIS,ACAS,30/09/2022,HOTEL EXPENSES,WALES&MID,CORPORATE TRAVEL MANAGEMENTLIMITED,PINV1058,76.12
BEIS,ACAS,30/09/2022,PUBLIC TRANSPORT & PARKING,DDAT,CORPORATE TRAVEL MANAGEMENTLIMITED,PINV1058,31.05
BEIS,ACAS,30/09/2022,PUBLIC TRANSPORT & PARKING,SCOTLAND,CORPORATE TRAVEL MANAGEMENTLIMITED,PINV1058,-29.5
BEIS,ACAS,30/09/2022,PUBLIC TRANSPORT & PARKING,ODHR,CORPORATE TRAVEL MANAGEMENTLIMITED,PINV1058,167.35
BEIS,ACAS,30/09/2022,HOTEL EXPENSES,DDAT,CORPORATE TRAVEL MANAGEMENTLIMITED,PINV1058,87.12
BEIS,ACAS,30/09/2022,HOTEL EXPENSES,DELIVERY,CORPORATE TRAVEL MANAGEMENTLIMITED,PINV1058,81.12
BEIS,ACAS,30/09/2022,PUBLIC TRANSPORT & PARKING,ODHR,CORPORATE TRAVEL MANAGEMENTLIMITED,PINV1058,101.05
BEIS,ACAS,30/09/2022,HOTEL EXPENSES,SPPC,CORPORATE TRAVEL MANAGEMENTLIMITED,PINV1058,207.62
BEIS,ACAS,30/09/2022,HOTEL EXPENSES,DELIVERY,CORPORATE TRAVEL MANAGEMENTLIMITED,PINV1058,83.12
BEIS,ACAS,30/09/2022,HOTEL EXPENSES,DELIVERY,CORPORATE TRAVEL MANAGEMENTLIMITED,PINV1058,83.12
BEIS,ACAS,30/09/2022,HOTEL EXPENSES,DELIVERY,CORPORATE TRAVEL MANAGEMENTLIMITED,PINV1058,83.12
BEIS,ACAS,30/09/2022,HOTEL EXPENSES,DELIVERY,CORPORATE TRAVEL MANAGEMENTLIMITED,PINV1058,83.12
BEIS,ACAS,30/09/2022,HOTEL EXPENSES,DELIVERY,CORPORATE TRAVEL MANAGEMENTLIMITED,PINV1058,83.12
BEIS,ACAS,30/09/2022,HOTEL EXPENSES,STRATEGY,CORPORATE TRAVEL MANAGEMENTLIMITED,PINV1058,430.04
BEIS,ACAS,30/09/2022,HOTEL EXPENSES,DELIVERY,CORPORATE TRAVEL MANAGEMENTLIMITED,PINV1058,83.12
BEIS,ACAS,30/09/2022,HOTEL EXPENSES,DELIVERY,CORPORATE TRAVEL MANAGEMENTLIMITED,PINV1058,83.12
BEIS,ACAS,30/09/2022,HOTEL EXPENSES,SOUTH&LONDON,CORPORATE TRAVEL MANAGEMENTLIMITED,PINV1058,104.67
BEIS,ACAS,30/09/2022,HOTEL EXPENSES,DELIVERY,CORPORATE TRAVEL MANAGEMENTLIMITED,PINV1058,83.12
BEIS,ACAS,30/09/2022,HOTEL EXPENSES,DELIVERY,CORPORATE TRAVEL MANAGEMENTLIMITED,PINV1058,83.12
BEIS,ACAS,30/09/2022,HOTEL EXPENSES,SPPC,CORPORATE TRAVEL MANAGEMENTLIMITED,PINV1058,116.12
BEIS,ACAS,30/09/2022,HOTEL EXPENSES,DELIVERY,CORPORATE TRAVEL MANAGEMENTLIMITED,PINV1058,83.12
BEIS,ACAS,30/09/2022,HOTEL EXPENSES,DELIVERY,CORPORATE TRAVEL MANAGEMENTLIMITED,PINV1058,83.12
BEIS,ACAS,30/09/2022,HOTEL EXPENSES,SOUTH&LONDON,CORPORATE TRAVEL MANAGEMENTLIMITED,PINV1058,98.32
BEIS,ACAS,30/09/2022,CO&CAC Non Staff T&S,CAC,CORPORATE TRAVEL MANAGEMENTLIMITED,PINV1058,87.2
BEIS,ACAS,30/09/2022,PUBLIC TRANSPORT & PARKING,SPPC,CORPORATE TRAVEL MANAGEMENTLIMITED,PINV1058,197.25
BEIS,ACAS,30/09/2022,PUBLIC TRANSPORT & PARKING,SOUTH&LONDON,CORPORATE TRAVEL MANAGEMENTLIMITED,PINV1058,45.25
BEIS,ACAS,30/09/2022,HOTEL EXPENSES,DELIVERY,CORPORATE TRAVEL MANAGEMENTLIMITED,PINV1058,1.12
BEIS,ACAS,30/09/2022,PUBLIC TRANSPORT & PARKING,SPPC,CORPORATE TRAVEL MANAGEMENTLIMITED,PINV1058,246.75
BEIS,ACAS,30/09/2022,HOTEL EXPENSES,SOUTH&LONDON,CORPORATE TRAVEL MANAGEMENTLIMITED,PINV1058,0.96
BEIS,ACAS,30/09/2022,PUBLIC TRANSPORT & PARKING,SOUTH&LONDON,CORPORATE TRAVEL MANAGEMENTLIMITED,PINV1058,149.95
BEIS,ACAS,30/09/2022,HOTEL EXPENSES,DDAT,CORPORATE TRAVEL MANAGEMENTLIMITED,PINV1058,123.67
BEIS,ACAS,30/09/2022,PUBLIC TRANSPORT & PARKING,ODHR,CORPORATE TRAVEL MANAGEMENTLIMITED,PINV1058,188.25
BEIS,ACAS,30/09/2022,HOTEL EXPENSES,SOUTH&LONDON,CORPORATE TRAVEL MANAGEMENTLIMITED,PINV1058,76.79
BEIS,ACAS,30/09/2022,HOTEL EXPENSES,ODHR,CORPORATE TRAVEL MANAGEMENTLIMITED,PINV1058,111.12
BEIS,ACAS,30/09/2022,HOTEL EXPENSES,SOUTH&LONDON,CORPORATE TRAVEL MANAGEMENTLIMITED,PINV1058,71.33
BEIS,ACAS,30/09/2022,PUBLIC TRANSPORT & PARKING,FEP,CORPORATE TRAVEL MANAGEMENTLIMITED,PINV1058,41.75
BEIS,ACAS,30/09/2022,HOTEL EXPENSES,SPPC,CORPORATE TRAVEL MANAGEMENTLIMITED,PINV1058,260.12
BEIS,ACAS,30/09/2022,HOTEL EXPENSES,DDAT,CORPORATE TRAVEL MANAGEMENTLIMITED,PINV1058,141.34
BEIS,ACAS,30/09/2022,HOTEL EXPENSES,DELIVERY,CORPORATE TRAVEL MANAGEMENTLIMITED,PINV1058,81.12
BEIS,ACAS,30/09/2022,HOTEL EXPENSES,SOUTH&LONDON,CORPORATE TRAVEL MANAGEMENTLIMITED,PINV1058,76.79
BEIS,ACAS,30/09/2022,HOTEL EXPENSES,SOUTH&LONDON,CORPORATE TRAVEL MANAGEMENTLIMITED,PINV1058,92.12
BEIS,ACAS,30/09/2022,HOTEL EXPENSES,NORTH&MID,CORPORATE TRAVEL MANAGEMENTLIMITED,PINV1058,92.12
BEIS,ACAS,30/09/2022,HOTEL EXPENSES,ODHR,CORPORATE TRAVEL MANAGEMENTLIMITED,PINV1058,119.12
BEIS,ACAS,30/09/2022,HOTEL EXPENSES,NORTH&MID,CORPORATE TRAVEL MANAGEMENTLIMITED,PINV1058,92.12
BEIS,ACAS,30/09/2022,HOTEL EXPENSES,WALES&MID,CORPORATE TRAVEL MANAGEMENTLIMITED,PINV1058,92.12
BEIS,ACAS,30/09/2022,HOTEL EXPENSES,WALES&MID,CORPORATE TRAVEL MANAGEMENTLIMITED,PINV1058,77.12
BEIS,ACAS,30/09/2022,HOTEL EXPENSES,DDAT,CORPORATE TRAVEL MANAGEMENTLIMITED,PINV1058,101.12
BEIS,ACAS,30/09/2022,HOTEL EXPENSES,WALES&MID,CORPORATE TRAVEL MANAGEMENTLIMITED,PINV1058,0.96
BEIS,ACAS,30/09/2022,PUBLIC TRANSPORT & PARKING,WALES&MID,CORPORATE TRAVEL MANAGEMENTLIMITED,PINV1058,112.25
BEIS,ACAS,30/09/2022,PUBLIC TRANSPORT & PARKING,WALES&MID,CORPORATE TRAVEL MANAGEMENTLIMITED,PINV1058,87.15
BEIS,ACAS,30/09/2022,HOTEL EXPENSES,SOUTH&LONDON,CORPORATE TRAVEL MANAGEMENTLIMITED,PINV1058,89.63
BEIS,ACAS,30/09/2022,HOTEL EXPENSES,SOUTH&LONDON,CORPORATE TRAVEL MANAGEMENTLIMITED,PINV1058,97.54
BEIS,ACAS,30/09/2022,PUBLIC TRANSPORT & PARKING,SOUTH&LONDON,CORPORATE TRAVEL MANAGEMENTLIMITED,PINV1058,17
BEIS,ACAS,30/09/2022,PUBLIC TRANSPORT & PARKING,WALES&MID,CORPORATE TRAVEL MANAGEMENTLIMITED,PINV1058,-88
BEIS,ACAS,03/10/2022,PROFESSIONAL FEES,DDAT,W3 PARTNERSHIP LTD,PINV1059,3367.33
BEIS,ACAS,09/10/2022,MOBILE PHONES,DDAT,TELEFONICA UK LTD (O2),PINV1060,5168.6
BEIS,ACAS,09/10/2022,MOBILE PHONES,DDAT,TELEFONICA UK LTD (O2),PINV1060,574.28
BEIS,ACAS,09/10/2022,MOBILE PHONES,DDAT,TELEFONICA UK LTD (O2),PINV1060,27
BEIS,ACAS,09/10/2022,MOBILE PHONES,DDAT,TELEFONICA UK LTD (O2),PINV1060,3
BEIS,ACAS,07/10/2022,PROFESSIONAL FEES,DDAT,ISYSTEMS INTEGRATION LTD,PINV1061,156892.8
BEIS,ACAS,05/10/2022,PERSONAL EXPENSE,SOUTH&LONDON,NAME / DESCRIPTION WITHHELD,EXPS1061,230.4
BEIS,ACAS,05/10/2022,PERSONAL EXPENSE,SOUTH&LONDON,NAME / DESCRIPTION WITHHELD,EXPS1061,15
BEIS,ACAS,05/10/2022,PERSONAL EXPENSE,SOUTH&LONDON,NAME / DESCRIPTION WITHHELD,EXPS1061,15
BEIS,ACAS,05/10/2022,PERSONAL EXPENSE,SOUTH&LONDON,NAME / DESCRIPTION WITHHELD,EXPS1062,138.6
BEIS,ACAS,05/10/2022,PERSONAL EXPENSE,SOUTH&LONDON,NAME / DESCRIPTION WITHHELD,EXPS1062,9
BEIS,ACAS,05/10/2022,PERSONAL EXPENSE,SOUTH&LONDON,NAME / DESCRIPTION WITHHELD,EXPS1062,142.2
BEIS,ACAS,05/10/2022,PERSONAL EXPENSE,SOUTH&LONDON,NAME / DESCRIPTION WITHHELD,EXPS1062,10
BEIS,ACAS,05/10/2022,PERSONAL EXPENSE,SOUTH&LONDON,NAME / DESCRIPTION WITHHELD,EXPS1062,10
BEIS,ACAS,05/10/2022,PERSONAL EXPENSE,SOUTH&LONDON,NAME / DESCRIPTION WITHHELD,EXPS1062,70
BEIS,ACAS,05/10/2022,PHOTOCOPIERS,DDAT,Canon (UK) Ltd,PINV1063,2146.81
BEIS,ACAS,05/10/2022,PHOTOCOPIERS,DDAT,Canon (UK) Ltd,PINV1063,238.54
BEIS,ACAS,05/10/2022,PHOTOCOPIERS,DDAT,Canon (UK) Ltd,PINV1063,492.48
BEIS,ACAS,05/10/2022,PHOTOCOPIERS,DDAT,Canon (UK) Ltd,PINV1063,54.72
BEIS,ACAS,05/10/2022,PHOTOCOPIERS,DDAT,Canon (UK) Ltd,PINV1063,566.29
BEIS,ACAS,05/10/2022,PHOTOCOPIERS,DDAT,Canon (UK) Ltd,PINV1063,62.92
BEIS,ACAS,05/10/2022,PHOTOCOPIERS,DDAT,Canon (UK) Ltd,PINV1063,428.26
BEIS,ACAS,05/10/2022,PHOTOCOPIERS,DDAT,Canon (UK) Ltd,PINV1063,47.58
BEIS,ACAS,12/10/2022,REFUNDS,SOUTH&LONDON,IVY EDUCATION TRUST,PINV1065,270
BEIS,ACAS,31/07/2022,OCCUPATIONAL HEALTH SERVICE,ODHR,TP HEALTH LTD,PINV1067,778.8
BEIS,ACAS,07/10/2022,PERSONAL EXPENSE,SOUTH&LONDON,NAME / DESCRIPTION WITHHELD,EXPS1068,162
BEIS,ACAS,07/10/2022,PERSONAL EXPENSE,SOUTH&LONDON,NAME / DESCRIPTION WITHHELD,EXPS1068,242.1
BEIS,ACAS,07/10/2022,PERSONAL EXPENSE,SOUTH&LONDON,NAME / DESCRIPTION WITHHELD,EXPS1068,51.3
BEIS,ACAS,07/10/2022,PERSONAL EXPENSE,SOUTH&LONDON,NAME / DESCRIPTION WITHHELD,EXPS1068,70
BEIS,ACAS,07/10/2022,PERSONAL EXPENSE,SOUTH&LONDON,NAME / DESCRIPTION WITHHELD,EXPS1068,70
BEIS,ACAS,07/10/2022,PERSONAL EXPENSE,SOUTH&LONDON,NAME / DESCRIPTION WITHHELD,EXPS1068,50
BEIS,ACAS,07/10/2022,PERSONAL EXPENSE,SOUTH&LONDON,NAME / DESCRIPTION WITHHELD,EXPS1068,10
BEIS,ACAS,30/09/2022,OCCUPATIONAL HEALTH SERVICE,ODHR,TP HEALTH LTD,PINV1070,778.8
BEIS,ACAS,13/10/2022,AGENCY STAFF,NORTH&MID,ALEXANDER MANN SOLUTIONS LTD,PINV1072,644.69
BEIS,ACAS,01/10/2022,PUBLICATIONS AND PERIODICALS,STRATEGY,CRONER-I LIMITED T/A HR INFORM,PINV1075,48150
BEIS,ACAS,08/10/2022,GOVT SOLICITORS FEES,DELIVERY,GOVERNMENT LEGAL DEPARTMENT,PINV1076,1078.68
BEIS,ACAS,14/10/2022,VENUE HIRE (REC VAT),NORTH&MID,CALDER CONFERENCES LTD,PINV1078,106.91
BEIS,ACAS,14/10/2022,VENUE HIRE (REC VAT),NORTH&MID,CALDER CONFERENCES LTD,PINV1078,163.16
BEIS,ACAS,10/10/2022,PERSONAL EXPENSE,NORTH&MID,NAME / DESCRIPTION WITHHELD,EXPS1078,54.3
BEIS,ACAS,10/10/2022,PERSONAL EXPENSE,NORTH&MID,NAME / DESCRIPTION WITHHELD,EXPS1078,6.1
BEIS,ACAS,10/10/2022,PERSONAL EXPENSE,NORTH&MID,NAME / DESCRIPTION WITHHELD,EXPS1078,17
BEIS,ACAS,10/10/2022,PERSONAL EXPENSE,NORTH&MID,NAME / DESCRIPTION WITHHELD,EXPS1078,105
BEIS,ACAS,10/10/2022,PERSONAL EXPENSE,NORTH&MID,NAME / DESCRIPTION WITHHELD,EXPS1078,15
BEIS,ACAS,10/10/2022,PERSONAL EXPENSE,NORTH&MID,NAME / DESCRIPTION WITHHELD,EXPS1078,20
BEIS,ACAS,10/10/2022,PERSONAL EXPENSE,NORTH&MID,NAME / DESCRIPTION WITHHELD,EXPS1078,15
BEIS,ACAS,10/10/2022,PERSONAL EXPENSE,NORTH&MID,NAME / DESCRIPTION WITHHELD,EXPS1078,20
BEIS,ACAS,14/10/2022,REFUNDS,SOUTH&LONDON,REIGATE & BANSTEAD BOROUGH COUNCIL,PINV1080,255
BEIS,ACAS,08/10/2022,GOVT SOLICITORS FEES,ODHR,GOVERNMENT LEGAL DEPARTMENT,PINV1082,13260.72
BEIS,ACAS,05/10/2022,SOFTWARE & LICENCES,DELIVERY,GOTO TECHNOLOGIES UK LTD,PINV1084,3240
BEIS,ACAS,28/09/2022,PROFESSIONAL FEES,DDAT,GAMMA TELECOM LIMITED,PINV1085,8095.07
BEIS,ACAS,13/10/2022,PERSONAL EXPENSE,DELIVERY,NAME / DESCRIPTION WITHHELD,EXPS1086,1060.91
BEIS,ACAS,13/10/2022,PERSONAL EXPENSE,WALES&MID,NAME / DESCRIPTION WITHHELD,EXPS1087,226.35
BEIS,ACAS,13/10/2022,PERSONAL EXPENSE,WALES&MID,NAME / DESCRIPTION WITHHELD,EXPS1087,64.35
BEIS,ACAS,13/10/2022,PERSONAL EXPENSE,WALES&MID,NAME / DESCRIPTION WITHHELD,EXPS1087,4.7
BEIS,ACAS,13/10/2022,PERSONAL EXPENSE,WALES&MID,NAME / DESCRIPTION WITHHELD,EXPS1087,18.8
BEIS,ACAS,13/10/2022,PERSONAL EXPENSE,WALES&MID,NAME / DESCRIPTION WITHHELD,EXPS1087,10
BEIS,ACAS,13/10/2022,PERSONAL EXPENSE,WALES&MID,NAME / DESCRIPTION WITHHELD,EXPS1087,10
BEIS,ACAS,13/10/2022,PERSONAL EXPENSE,WALES&MID,NAME / DESCRIPTION WITHHELD,EXPS1087,5
BEIS,ACAS,13/10/2022,PERSONAL EXPENSE,WALES&MID,NAME / DESCRIPTION WITHHELD,EXPS1087,10
BEIS,ACAS,13/10/2022,PERSONAL EXPENSE,WALES&MID,NAME / DESCRIPTION WITHHELD,EXPS1087,25
BEIS,ACAS,13/10/2022,PERSONAL EXPENSE,WALES&MID,NAME / DESCRIPTION WITHHELD,EXPS1087,50
BEIS,ACAS,13/10/2022,PERSONAL EXPENSE,WALES&MID,NAME / DESCRIPTION WITHHELD,EXPS1087,70
BEIS,ACAS,13/10/2022,PERSONAL EXPENSE,WALES&MID,NAME / DESCRIPTION WITHHELD,EXPS1087,14.2
BEIS,ACAS,10/10/2022,PROFESSIONAL FEES,DDAT,GAMMA TELECOM LIMITED,PINV1087,4175.88
BEIS,ACAS,18/10/2022,CHILDCARE VOUCHERS,FEP,EDENRED CHILDCARE VOUCHERS LTD,PINV1088,1974
BEIS,ACAS,23/08/2022,SERVICE CHARGES,FEP,GOVERNMENT PROPERTY AGENCY,PINV1089,1437.5
BEIS,ACAS,23/08/2022,PROFESSIONAL FEES,FEP,GOVERNMENT PROPERTY AGENCY,PINV1089,1194.62
BEIS,ACAS,23/08/2022,PROFESSIONAL FEES,FEP,GOVERNMENT PROPERTY AGENCY,PINV1089,590
BEIS,ACAS,04/04/2022,RATES,FEP,GOVERNMENT PROPERTY AGENCY,PINV1090,2178.01
BEIS,ACAS,04/04/2022,Lease Liability,FEP,GOVERNMENT PROPERTY AGENCY,PINV1090,22652.4
BEIS,ACAS,01/06/2022,PROFESSIONAL FEES,FEP,GOVERNMENT PROPERTY AGENCY,PINV1091,708
BEIS,ACAS,01/06/2022,PROFESSIONAL FEES,FEP,GOVERNMENT PROPERTY AGENCY,PINV1091,3645
BEIS,ACAS,01/06/2022,RATES,FEP,GOVERNMENT PROPERTY AGENCY,PINV1091,2178.01
BEIS,ACAS,01/06/2022,Lease Liability,FEP,GOVERNMENT PROPERTY AGENCY,PINV1091,22652.4
BEIS,ACAS,01/06/2022,RATES,FEP,GOVERNMENT PROPERTY AGENCY,PINV1091,2178.01
BEIS,ACAS,01/06/2022,Lease Liability,FEP,GOVERNMENT PROPERTY AGENCY,PINV1091,22652.4
BEIS,ACAS,01/06/2022,RATES,FEP,GOVERNMENT PROPERTY AGENCY,PINV1091,2178.01
BEIS,ACAS,01/06/2022,Lease Liability,FEP,GOVERNMENT PROPERTY AGENCY,PINV1091,22652.4
BEIS,ACAS,20/10/2022,AGENCY STAFF,NORTH&MID,ALEXANDER MANN SOLUTIONS LTD,PINV1095,644.69
BEIS,ACAS,22/08/2022,PROFESSIONAL FEES,FEP,GOVERNMENT PROPERTY AGENCY,PINV1101,708
BEIS,ACAS,22/08/2022,PROFESSIONAL FEES,FEP,GOVERNMENT PROPERTY AGENCY,PINV1101,3645
BEIS,ACAS,22/08/2022,RATES,FEP,GOVERNMENT PROPERTY AGENCY,PINV1101,2178.01
BEIS,ACAS,22/08/2022,Lease Liability,FEP,GOVERNMENT PROPERTY AGENCY,PINV1101,10985.8
BEIS,ACAS,22/08/2022,RATES,FEP,GOVERNMENT PROPERTY AGENCY,PINV1102,2178.01
BEIS,ACAS,22/08/2022,Lease Liability,FEP,GOVERNMENT PROPERTY AGENCY,PINV1102,10985.8
BEIS,ACAS,06/07/2022,OCCUPATIONAL HEALTH SERVICE,ODHR,HEALTH MANAGEMENT LTD,PINV1104,2604
BEIS,ACAS,24/10/2022,HIRE CAR COSTS,SOUTH&LONDON,ENTERPRISE RENT-A-CAR,PINV1109,85.73
BEIS,ACAS,24/10/2022,HIRE CAR PETROL,SOUTH&LONDON,ENTERPRISE RENT-A-CAR,PINV1109,36.34
BEIS,ACAS,24/10/2022,HIRE CAR COSTS,SOUTH&LONDON,ENTERPRISE RENT-A-CAR,PINV1109,145.56
BEIS,ACAS,24/10/2022,HIRE CAR COSTS,DDAT,ENTERPRISE RENT-A-CAR,PINV1109,110.78
BEIS,ACAS,24/10/2022,HIRE CAR PETROL,DDAT,ENTERPRISE RENT-A-CAR,PINV1109,67.23
BEIS,ACAS,24/10/2022,HIRE CAR COSTS,SOUTH&LONDON,ENTERPRISE RENT-A-CAR,PINV1109,138.85
BEIS,ACAS,24/10/2022,HIRE CAR PETROL,SOUTH&LONDON,ENTERPRISE RENT-A-CAR,PINV1109,56.95
BEIS,ACAS,24/10/2022,HIRE CAR COSTS,SOUTH&LONDON,ENTERPRISE RENT-A-CAR,PINV1109,108.53
BEIS,ACAS,24/10/2022,HIRE CAR COSTS,SOUTH&LONDON,ENTERPRISE RENT-A-CAR,PINV1109,134.3
BEIS,ACAS,24/10/2022,HIRE CAR PETROL,SOUTH&LONDON,ENTERPRISE RENT-A-CAR,PINV1109,29.63
BEIS,ACAS,24/10/2022,HIRE CAR COSTS,SCOTLAND,ENTERPRISE RENT-A-CAR,PINV1109,120.29
BEIS,ACAS,24/10/2022,HIRE CAR COSTS,SOUTH&LONDON,ENTERPRISE RENT-A-CAR,PINV1109,192.8
BEIS,ACAS,24/10/2022,HIRE CAR PETROL,SOUTH&LONDON,ENTERPRISE RENT-A-CAR,PINV1109,65.62
BEIS,ACAS,24/10/2022,HIRE CAR COSTS,SOUTH&LONDON,ENTERPRISE RENT-A-CAR,PINV1109,130.1
BEIS,ACAS,25/10/2022,IT & TELECOMS TRAINING,DDAT,QAIQ,PINV1110,5004
BEIS,ACAS,24/10/2022,PERSONAL EXPENSE,SOUTH&LONDON,NAME / DESCRIPTION WITHHELD,EXPS1113,344.7
BEIS,ACAS,24/10/2022,PERSONAL EXPENSE,SOUTH&LONDON,NAME / DESCRIPTION WITHHELD,EXPS1113,6
BEIS,ACAS,24/10/2022,PERSONAL EXPENSE,SOUTH&LONDON,NAME / DESCRIPTION WITHHELD,EXPS1113,5
BEIS,ACAS,24/10/2022,PERSONAL EXPENSE,SOUTH&LONDON,NAME / DESCRIPTION WITHHELD,EXPS1113,15
BEIS,ACAS,24/10/2022,PERSONAL EXPENSE,SOUTH&LONDON,NAME / DESCRIPTION WITHHELD,EXPS1113,105
BEIS,ACAS,24/10/2022,PERSONAL EXPENSE,SOUTH&LONDON,NAME / DESCRIPTION WITHHELD,EXPS1113,30
BEIS,ACAS,24/10/2022,PERSONAL EXPENSE,SOUTH&LONDON,NAME / DESCRIPTION WITHHELD,EXPS1114,306
BEIS,ACAS,24/10/2022,PERSONAL EXPENSE,SOUTH&LONDON,NAME / DESCRIPTION WITHHELD,EXPS1114,10.6
BEIS,ACAS,24/10/2022,PERSONAL EXPENSE,SOUTH&LONDON,NAME / DESCRIPTION WITHHELD,EXPS1114,5
BEIS,ACAS,24/10/2022,PERSONAL EXPENSE,SOUTH&LONDON,NAME / DESCRIPTION WITHHELD,EXPS1114,40
BEIS,ACAS,30/09/2022,MANAGED SERVICE Off-PAYROLL WK,DELIVERY,OPENCAST SOFTWARE EUROPE LTD,PINV1114,89904.24
BEIS,ACAS,27/10/2022,AGENCY STAFF,NORTH&MID,ALEXANDER MANN SOLUTIONS LTD,PINV1116,644.69
BEIS,ACAS,31/10/2022,NON-OPERATIONAL EXPENDITURE,CENTRE,GOVERNMENT PROPERTY AGENCY,PINV1118,343874.16
BEIS,ACAS,24/10/2022,PERSONAL EXPENSE,SOUTH&LONDON,NAME / DESCRIPTION WITHHELD,EXPS1118,208.8
BEIS,ACAS,24/10/2022,PERSONAL EXPENSE,SOUTH&LONDON,NAME / DESCRIPTION WITHHELD,EXPS1118,395.1
BEIS,ACAS,24/10/2022,PERSONAL EXPENSE,SOUTH&LONDON,NAME / DESCRIPTION WITHHELD,EXPS1118,33.75
BEIS,ACAS,24/10/2022,PERSONAL EXPENSE,SOUTH&LONDON,NAME / DESCRIPTION WITHHELD,EXPS1118,20
BEIS,ACAS,24/10/2022,PERSONAL EXPENSE,SOUTH&LONDON,NAME / DESCRIPTION WITHHELD,EXPS1118,5
BEIS,ACAS,24/10/2022,PERSONAL EXPENSE,SOUTH&LONDON,NAME / DESCRIPTION WITHHELD,EXPS1118,70
BEIS,ACAS,24/10/2022,PERSONAL EXPENSE,SOUTH&LONDON,NAME / DESCRIPTION WITHHELD,EXPS1118,72.66
BEIS,ACAS,25/10/2022,PERSONAL EXPENSE,WALES&MID,NAME / DESCRIPTION WITHHELD,EXPS1124,248.4
BEIS,ACAS,25/10/2022,PERSONAL EXPENSE,WALES&MID,NAME / DESCRIPTION WITHHELD,EXPS1124,105
BEIS,ACAS,25/10/2022,PERSONAL EXPENSE,WALES&MID,NAME / DESCRIPTION WITHHELD,EXPS1124,15
BEIS,ACAS,25/10/2022,PERSONAL EXPENSE,WALES&MID,NAME / DESCRIPTION WITHHELD,EXPS1124,10
BEIS,ACAS,25/10/2022,PERSONAL EXPENSE,DELIVERY,NAME / DESCRIPTION WITHHELD,EXPS1126,1007.87
BEIS,ACAS,26/10/2022,PERSONAL EXPENSE,SOUTH&LONDON,NAME / DESCRIPTION WITHHELD,EXPS1128,68.4
BEIS,ACAS,26/10/2022,PERSONAL EXPENSE,SOUTH&LONDON,NAME / DESCRIPTION WITHHELD,EXPS1128,67.6
BEIS,ACAS,26/10/2022,PERSONAL EXPENSE,SOUTH&LONDON,NAME / DESCRIPTION WITHHELD,EXPS1128,11.5
BEIS,ACAS,26/10/2022,PERSONAL EXPENSE,SOUTH&LONDON,NAME / DESCRIPTION WITHHELD,EXPS1128,2.6
BEIS,ACAS,26/10/2022,PERSONAL EXPENSE,SOUTH&LONDON,NAME / DESCRIPTION WITHHELD,EXPS1128,20
BEIS,ACAS,26/10/2022,PERSONAL EXPENSE,SOUTH&LONDON,NAME / DESCRIPTION WITHHELD,EXPS1128,20
BEIS,ACAS,26/10/2022,PERSONAL EXPENSE,SOUTH&LONDON,NAME / DESCRIPTION WITHHELD,EXPS1128,140
BEIS,ACAS,26/10/2022,PERSONAL EXPENSE,SOUTH&LONDON,NAME / DESCRIPTION WITHHELD,EXPS1128,10
BEIS,ACAS,25/10/2022,PERSONAL EXPENSE,NORTH&MID,NAME / DESCRIPTION WITHHELD,EXPS1130,250.65
BEIS,ACAS,25/10/2022,PERSONAL EXPENSE,NORTH&MID,NAME / DESCRIPTION WITHHELD,EXPS1130,10
BEIS,ACAS,25/10/2022,PERSONAL EXPENSE,NORTH&MID,NAME / DESCRIPTION WITHHELD,EXPS1130,140
BEIS,ACAS,25/10/2022,PERSONAL EXPENSE,NORTH&MID,NAME / DESCRIPTION WITHHELD,EXPS1130,109.95
BEIS,ACAS,27/10/2022,PERSONAL EXPENSE,WALES&MID,NAME / DESCRIPTION WITHHELD,EXPS1141,212.85
BEIS,ACAS,27/10/2022,PERSONAL EXPENSE,WALES&MID,NAME / DESCRIPTION WITHHELD,EXPS1141,4
BEIS,ACAS,27/10/2022,PERSONAL EXPENSE,WALES&MID,NAME / DESCRIPTION WITHHELD,EXPS1141,40
BEIS,ACAS,27/10/2022,PERSONAL EXPENSE,WALES&MID,NAME / DESCRIPTION WITHHELD,EXPS1141,5
BEIS,ACAS,27/10/2022,PERSONAL EXPENSE,WALES&MID,NAME / DESCRIPTION WITHHELD,EXPS1141,25
BEIS,ACAS,27/10/2022,PERSONAL EXPENSE,WALES&MID,NAME / DESCRIPTION WITHHELD,EXPS1141,5
BEIS,ACAS,27/10/2022,PERSONAL EXPENSE,WALES&MID,NAME / DESCRIPTION WITHHELD,EXPS1141,20
BEIS,ACAS,27/10/2022,PERSONAL EXPENSE,WALES&MID,NAME / DESCRIPTION WITHHELD,EXPS1141,35
BEIS,ACAS,28/10/2022,PERSONAL EXPENSE,SCOTLAND,NAME / DESCRIPTION WITHHELD,EXPS1146,142.2
BEIS,ACAS,28/10/2022,PERSONAL EXPENSE,SCOTLAND,NAME / DESCRIPTION WITHHELD,EXPS1146,24
BEIS,ACAS,28/10/2022,PERSONAL EXPENSE,SCOTLAND,NAME / DESCRIPTION WITHHELD,EXPS1146,10
BEIS,ACAS,28/10/2022,PERSONAL EXPENSE,SCOTLAND,NAME / DESCRIPTION WITHHELD,EXPS1146,70
BEIS,ACAS,28/10/2022,PERSONAL EXPENSE,SCOTLAND,NAME / DESCRIPTION WITHHELD,EXPS1146,10
BEIS,ACAS,28/10/2022,PERSONAL EXPENSE,DELIVERY,NAME / DESCRIPTION WITHHELD,EXPS1149,39.15
BEIS,ACAS,28/10/2022,PERSONAL EXPENSE,DELIVERY,NAME / DESCRIPTION WITHHELD,EXPS1149,40
BEIS,ACAS,28/10/2022,PERSONAL EXPENSE,DELIVERY,NAME / DESCRIPTION WITHHELD,EXPS1149,125
BEIS,ACAS,28/10/2022,PERSONAL EXPENSE,DELIVERY,NAME / DESCRIPTION WITHHELD,EXPS1149,280
BEIS,ACAS,28/10/2022,PERSONAL EXPENSE,SOUTH&LONDON,NAME / DESCRIPTION WITHHELD,EXPS1150,304.2
BEIS,ACAS,28/10/2022,PERSONAL EXPENSE,SOUTH&LONDON,NAME / DESCRIPTION WITHHELD,EXPS1150,20
BEIS,ACAS,28/10/2022,PERSONAL EXPENSE,SOUTH&LONDON,NAME / DESCRIPTION WITHHELD,EXPS1150,50
BEIS,ACAS,28/10/2022,PERSONAL EXPENSE,WALES&MID,NAME / DESCRIPTION WITHHELD,EXPS1152,157.05
BEIS,ACAS,28/10/2022,PERSONAL EXPENSE,WALES&MID,NAME / DESCRIPTION WITHHELD,EXPS1152,1.45
BEIS,ACAS,28/10/2022,PERSONAL EXPENSE,WALES&MID,NAME / DESCRIPTION WITHHELD,EXPS1152,15
BEIS,ACAS,28/10/2022,PERSONAL EXPENSE,WALES&MID,NAME / DESCRIPTION WITHHELD,EXPS1152,25
BEIS,ACAS,28/10/2022,PERSONAL EXPENSE,WALES&MID,NAME / DESCRIPTION WITHHELD,EXPS1152,20
BEIS,ACAS,28/10/2022,PERSONAL EXPENSE,WALES&MID,NAME / DESCRIPTION WITHHELD,EXPS1152,105
